[Event "Moscow Open RSSU Cup 2020"]
[Site "Moscow"]
[Date "2020.01.25"]
[Round "1.1"]
[White "Grachev, Boris"]
[Black "Odegov, Artem"]
[Result "1-0"]
[ECO "D41"]
[WhiteElo "2614"]
[BlackElo "2239"]
[Annotator "RC"]
[PlyCount "45"]
[EventDate "2020.01.25"]
[EventType "swiss"]
[EventCountry "RUS"]
[SourceTitle "playchess.com"]
[Source "ChessBase"]
[SourceQuality "1"]
[TimeControl "40/5400+30:1800+30"]

1. Nf3 {[%emt 0:01:38]} Nf6 {[%emt 0:00:22]} 2. c4 {[%emt 0:00:20]} e6 {[%emt 0:00:12]} 3. Nc3 {[%emt 0:00:50]} d5 {[%emt 0:00:11]} 4. d4 {[%emt 0:01:58]} c5 {[%emt 0:01:41]} 5. cxd5 {[%emt 0:00:30]} cxd4 {[%emt 0:00:08]} 6. Qxd4 {[%emt 0:00:49]} exd5 {[%emt 0:00:06]} 7. e4 {[%emt 0:00:05]} Nc6 {[%emt 0:00:11]} 8. Bb5 {[%emt 0:00:07]} dxe4 {[%emt 0:00:18]} 9. Qxd8+ {[%emt 0:00:24]} Kxd8 {[%emt 0:00:06]} 10. Ng5 {[%emt 0:00:50]} Ke7 {[%emt 0:02:25]} 11. Be3 {[%emt 0:04:39]} Bf5 {[%emt 0:13:58]} 12. O-O-O {[%emt 0:06:30]} h6 {[%emt 0:12:59]} 13. Ngxe4 {[%emt 0:04:08]} Bxe4 {[%emt 0:05:19]} 14. Rhe1 {[%emt 0:00:20]} Ke6 {[%emt 0:21:51]} 15. Bd2 {[%emt 0:10:41]} Bb4 {[%emt 0:13:06]} 16. Nxe4 {[%emt 0:02:45]} Bxd2+ {[%emt 0:00:05]} 17. Nxd2+ {[%emt 0:06:00]} Kf5 {[%emt 0:00:57]} 18. Bd3+ {[%emt 0:05:31]} Kg5 {[%emt 0:05:40]} 19. Nf3+ {[%emt 0:00:40]} Kf4 {[%emt 0:00:08]} 20. Re3 {[%emt 0:00:52]} Rhe8 {[%emt 0:08:32]} 21. g3+ {[%emt 0:00:13]} Kg4 {[%emt 0:00:04]} 22. h3+ {[%emt 0:00:02]} Kh5 {[%emt 0:00:17]} 23. Bf5 {[%emt 0:00:22]} 1-0

[Event "Moscow Open RSSU Cup 2020"]
[Site "Moscow"]
[Date "2020.01.25"]
[Round "1.3"]
[White "Petrosyan, Manuel"]
[Black "Chibukhchyan, Erik"]
[Result "1-0"]
[ECO "A20"]
[WhiteElo "2590"]
[BlackElo "2233"]
[Annotator "ChessBase"]
[PlyCount "111"]
[EventDate "2020.01.25"]
[EventType "swiss"]
[EventCountry "RUS"]
[SourceTitle "playchess.com"]
[Source "ChessBase"]
[SourceQuality "1"]
[TimeControl "40/5400+30:1800+30"]

1. c4 {[%emt 0:01:37]} e5 {[%emt 0:00:00]} 2. g3 {[%emt 0:00:20]} Nf6 {[%emt 0:00:00]} 3. Bg2 {[%emt 0:00:05]} d5 {[%emt 0:00:00]} 4. cxd5 {[%emt 0:00:13]} Nxd5 {[%emt 0:00:00]} 5. Nf3 {[%emt 0:00:07]} Nc6 {[%emt 0:00:00]} 6. O-O {[%emt 0:00:20]} Nb6 {[%emt 0:00:43]} 7. b3 {[%emt 0:01:28]} g6 {[%emt 0:05:23]} 8. Nc3 {[%emt 0:05:15]} Bg7 {[%emt 0:00:29]} 9. Ba3 {[%emt 0:00:40]} Ne7 {[%emt 0:02:32]} 10. Rc1 {[%emt 0:02:37]} a6 {[%emt 0:04:54]} 11. Qc2 {[%emt 0:03:43]} O-O {[%emt 0:01:52]} 12. Rfd1 {[%emt 0:00:43]} Bf5 {[%emt 0:08:02]} 13. Ne4 {[%emt 0:02:47]} Re8 {[%emt 0:07:27]} 14. d3 {[%emt 0:03:58]} Nc6 {[%emt 0:06:42]} 15. Nc5 {[%emt 0:01:08]} Bc8 {[%emt 0:00:13]} 16. e3 {[%emt 0:06:04]} Nd5 {[%emt 0:03:28]} 17. Bb2 {[%emt 0:00:41]} Ndb4 {[%emt 0:13:15]} 18. Qb1 {[%emt 0:01:16]} a5 {[%emt 0:00:04]} 19. d4 {[%emt 0:09:37]} exd4 {[%emt 0:01:35]} 20. Nxd4 {[%emt 0:01:03]} Qe7 {[%emt 0:04:13]} 21. Nxc6 {[%emt 0:04:27]} Nxc6 {[%emt 0:00:19]} 22. Bxg7 {[%emt 0:01:26]} Kxg7 {[%emt 0:00:04]} 23. Qb2+ {[%emt 0:02:48]} f6 {[%emt 0:02:20]} 24. Nxb7 {[%emt 0:02:08]} Ne5 {[%emt 0:00:40]} 25. h3 {[%emt 0:11:22]} Bxb7 {[%emt 0:05:24]} 26. Bxb7 {[%emt 0:03:38]} Rab8 {[%emt 0:00:01]} 27. Bg2 {[%emt 0:01:01]} a4 {[%emt 0:00:01]} 28. Qc3 {[%emt 0:00:16]} axb3 {[%emt 0:00:06]} 29. axb3 {[%emt 0:00:03]} c5 {[%emt 0:00:31]} 30. Bd5 {[%emt 0:02:19]} Rec8 {[%emt 0:00:16]} 31. Kg2 {[%emt 0:02:10]} g5 {[%emt 0:01:10]} 32. f4 {[%emt 0:01:46]} gxf4 {[%emt 0:00:22]} 33. exf4 {[%emt 0:00:29]} Ng6 {[%emt 0:01:12]} 34. Re1 {[%emt 0:01:47]} Qd6 {[%emt 0:00:10]} 35. Rcd1 {[%emt 0:00:37]} Re8 {[%emt 0:00:21]} 36. Bf3 {[%emt 0:00:52]} Qc7 {[%emt 0:01:13]} 37. Rxe8 {[%emt 0:03:34]} Rxe8 {[%emt 0:00:02]} 38. b4 {[%emt 0:00:58]} Nxf4+ {[%emt 0:18:05]} 39. gxf4 {[%emt 0:00:53]} Qxf4 {[%emt 0:00:01]} 40. Qxc5 {[%emt 0:02:56]} Kh8 {[%emt 0:00:02]} 41. Qd4 {[%emt 0:32:59]} Rg8+ {[%emt 0:30:17]} 42. Bg4 {[%emt 0:00:09]} Qxd4 {[%emt 0:00:06]} 43. Rxd4 {[%emt 0:00:04]} h5 {[%emt 0:03:10]} 44. Kf3 {[%emt 0:00:09]} hxg4+ {[%emt 0:00:04]} 45. hxg4 {[%emt 0:00:12]} Kg7 {[%emt 0:02:17]} 46. Ke4 {[%emt 0:01:11]} Kf7 {[%emt 0:00:23]} 47. Kd5 {[%emt 0:01:32]} Ke7 {[%emt 0:02:27]} 48. Kc6 {[%emt 0:00:50]} Rc8+ {[%emt 0:00:11]} 49. Kb7 {[%emt 0:00:29]} Rc1 {[%emt 0:00:06]} 50. b5 {[%emt 0:00:30]} Rb1 {[%emt 0:00:04]} 51. b6 {[%emt 0:00:11]} Ke6 {[%emt 0:00:07]} 52. Kc7 {[%emt 0:01:09]} Rc1+ {[%emt 0:00:02]} 53. Kb8 {[%emt 0:00:15]} Rb1 {[%emt 0:00:04]} 54. b7 {[%emt 0:00:09]} Ke7 {[%emt 0:00:05]} 55. Ra4 {[%emt 0:00:34]} Kd7 {[%emt 0:00:09]} 56. Ka8 {[%emt 0:00:35]} 1-0

[Event "Moscow Open RSSU Cup 2020"]
[Site "Moscow"]
[Date "2020.01.25"]
[Round "1.4"]
[White "Kirillov, Dmitry"]
[Black "Timofeev, Artyom"]
[Result "0-1"]
[ECO "B01"]
[WhiteElo "2232"]
[BlackElo "2588"]
[Annotator "ChessBase"]
[PlyCount "36"]
[EventDate "2020.01.25"]
[EventType "swiss"]
[EventCountry "RUS"]
[SourceTitle "playchess.com"]
[Source "ChessBase"]
[SourceQuality "1"]
[TimeControl "40/5400+30:1800+30"]

1. e4 {[%emt 0:00:00]} d5 {[%emt 0:00:15]} 2. exd5 {[%emt 0:00:00]} Qxd5 {[%emt 0:00:09]} 3. Nc3 {[%emt 0:00:00]} Qd8 {[%emt 0:00:08]} 4. d4 {[%emt 0:00:42]} g6 {[%emt 0:00:18]} 5. Nf3 {[%emt 0:02:13]} Bg7 {[%emt 0:00:12]} 6. Bc4 {[%emt 0:01:31]} Nf6 {[%emt 0:00:18]} 7. O-O {[%emt 0:01:17]} O-O {[%emt 0:00:12]} 8. Bf4 {[%emt 0:05:05]} Bg4 {[%emt 0:01:30]} 9. Re1 {[%emt 0:11:53]} c6 {[%emt 0:03:50]} 10. d5 {[%emt 0:04:27]} cxd5 {[%emt 0:05:08]} 11. Nxd5 {[%emt 0:00:14]} Nc6 {[%emt 0:00:28]} 12. Bc7 {[%emt 0:12:36]} Qd7 {[%emt 0:03:24]} 13. Nxf6+ {[%emt 0:07:56]} Bxf6 {[%emt 0:00:09]} 14. Qxd7 {[%emt 0:00:09]} Bxd7 {[%emt 0:00:06]} 15. Ne5 {[%emt 0:00:42]} Rfc8 {[%emt 0:05:42]} 16. Nxd7 {[%emt 0:06:11]} Bxb2 {[%emt 0:00:17]} 17. Be5 {[%emt 0:09:32]} Bxa1 {[%emt 0:01:09]} 18. Bxa1 {[%emt 0:05:50]} Rc7 {[%emt 0:00:18]} 0-1

[Event "Moscow Open RSSU Cup 2020"]
[Site "Moscow"]
[Date "2020.01.25"]
[Round "1.7"]
[White "Sychev, Klementy"]
[Black "Skorodelov, Semen"]
[Result "1-0"]
[ECO "C61"]
[WhiteElo "2563"]
[BlackElo "2228"]
[Annotator "ChessBase"]
[PlyCount "91"]
[EventDate "2020.01.25"]
[EventType "swiss"]
[EventCountry "RUS"]
[SourceTitle "playchess.com"]
[Source "ChessBase"]
[SourceQuality "1"]
[TimeControl "40/5400+30:1800+30"]

1. e4 {[%emt 0:00:00]} e5 {[%emt 0:00:00]} 2. Nf3 {[%emt 0:00:00]} Nc6 {[%emt 0:00:44]} 3. Bb5 {[%emt 0:00:20]} Nd4 {[%emt 0:00:14]} 4. Nxd4 {[%emt 0:01:11]} exd4 {[%emt 0:00:03]} 5. O-O {[%emt 0:06:37]} Bc5 {[%emt 0:00:35]} 6. Re1 {[%emt 0:03:02]} Ne7 {[%emt 0:01:39]} 7. Qh5 {[%emt 0:13:25]} Bb6 {[%emt 0:01:07]} 8. d3 {[%emt 0:00:28]} O-O {[%emt 0:02:33]} 9. Bc4 {[%emt 0:00:09]} d6 {[%emt 0:06:04]} 10. Bg5 {[%emt 0:06:24]} Be6 {[%emt 0:02:27]} 11. Nd2 {[%emt 0:02:48]} Qd7 {[%emt 0:02:44]} 12. Bxe6 {[%emt 0:25:59]} fxe6 {[%emt 0:03:11]} 13. a4 {[%emt 0:00:18]} c5 {[%emt 0:02:41]} 14. Nf3 {[%emt 0:03:39]} Ng6 {[%emt 0:04:19]} 15. Bd2 {[%emt 0:00:23]} Bd8 {[%emt 0:00:45]} 16. c3 {[%emt 0:02:25]} dxc3 {[%emt 0:00:39]} 17. bxc3 {[%emt 0:00:12]} Bf6 {[%emt 0:02:10]} 18. Qg4 {[%emt 0:03:27]} Rae8 {[%emt 0:07:05]} 19. d4 {[%emt 0:00:32]} cxd4 {[%emt 0:02:09]} 20. cxd4 {[%emt 0:01:34]} b6 {[%emt 0:01:07]} 21. h4 {[%emt 0:00:23]} Rf7 {[%emt 0:09:39]} 22. Rec1 {[%emt 0:03:39]} d5 {[%emt 0:02:51]} 23. h5 {[%emt 0:00:58]} Nf8 {[%emt 0:01:14]} 24. e5 {[%emt 0:02:15]} Be7 {[%emt 0:03:18]} 25. Ne1 {[%emt 0:00:30]} Rc8 {[%emt 0:01:09]} 26. Rxc8 {[%emt 0:02:56]} Qxc8 {[%emt 0:00:02]} 27. Rc1 {[%emt 0:00:10]} Qe8 {[%emt 0:03:04]} 28. Qd1 {[%emt 0:01:53]} Ba3 {[%emt 0:01:28]} 29. Rb1 {[%emt 0:00:51]} Rb7 {[%emt 0:01:00]} 30. Nd3 {[%emt 0:00:48]} Qc8 {[%emt 0:02:33]} 31. Rb3 {[%emt 0:04:15]} Be7 {[%emt 0:01:20]} 32. h6 {[%emt 0:00:06]} g6 {[%emt 0:06:43]} 33. Bb4 {[%emt 0:02:16]} Bxb4 {[%emt 0:01:12]} 34. Rxb4 {[%emt 0:00:44]} Qc3 {[%emt 0:01:30]} 35. a5 {[%emt 0:01:30]} Rf7 {[%emt 0:01:54]} 36. axb6 {[%emt 0:00:51]} axb6 {[%emt 0:00:09]} 37. g3 {[%emt 0:01:00]} Rf5 {[%emt 0:02:19]} 38. Kg2 {[%emt 0:01:59]} Nd7 {[%emt 0:04:19]} 39. Ra4 {[%emt 0:00:47]} Nf8 {[%emt 0:00:58]} 40. Nf4 {[%emt 0:00:45]} Rf7 {[%emt 0:02:22]} 41. Ra8 {[%emt 0:31:33]} Qb2 {[%emt 0:34:46]} 42. Qg4 {[%emt 0:02:12]} b5 {[%emt 0:01:49]} 43. Qxe6 {[%emt 0:01:29]} Qxd4 {[%emt 0:01:58]} 44. Qxd5 {[%emt 0:00:19]} Qb6 {[%emt 0:01:50]} 45. Rxf8+ {[%emt 0:00:25]} Kxf8 {[%emt 0:00:15]} 46. Qa8+ {[%emt 0:00:04]} 1-0

[Event "Moscow Open RSSU Cup 2020"]
[Site "Moscow"]
[Date "2020.01.25"]
[Round "1.8"]
[White "Shoboev, Dandar"]
[Black "Tsydypov, Zhamsaran"]
[Result "0-1"]
[ECO "E09"]
[WhiteElo "2228"]
[BlackElo "2553"]
[Annotator "ChessBase"]
[PlyCount "74"]
[EventDate "2020.01.25"]
[EventType "swiss"]
[EventCountry "RUS"]
[SourceTitle "playchess.com"]
[Source "ChessBase"]
[SourceQuality "1"]
[TimeControl "40/5400+30:1800+30"]

1. d4 {[%emt 0:00:00]} Nf6 {[%emt 0:00:00]} 2. c4 {[%emt 0:00:00]} e6 {[%emt 0:00:00]} 3. g3 {[%emt 0:00:00]} d5 {[%emt 0:00:10]} 4. Nf3 {[%emt 0:00:00]} c6 {[%emt 0:02:16]} 5. Bg2 {[%emt 0:00:08]} Nbd7 {[%emt 0:00:20]} 6. Qc2 {[%emt 0:01:29]} Be7 {[%emt 0:00:38]} 7. O-O {[%emt 0:00:08]} O-O {[%emt 0:00:12]} 8. Nbd2 {[%emt 0:01:05]} b6 {[%emt 0:00:10]} 9. Rd1 {[%emt 0:00:34]} Bb7 {[%emt 0:00:16]} 10. e4 {[%emt 0:00:45]} Rc8 {[%emt 0:02:05]} 11. b3 {[%emt 0:00:11]} c5 {[%emt 0:01:14]} 12. exd5 {[%emt 0:00:18]} exd5 {[%emt 0:00:08]} 13. Qf5 {[%emt 0:06:41]} g6 {[%emt 0:05:20]} 14. Qf4 {[%emt 0:00:28]} cxd4 {[%emt 0:05:14]} 15. Nxd4 {[%emt 0:09:49]} Nh5 {[%emt 0:09:13]} 16. Qg4 {[%emt 0:01:40]} Bc5 {[%emt 0:03:29]} 17. Bb2 {[%emt 0:02:56]} Re8 {[%emt 0:03:01]} 18. cxd5 {[%emt 0:14:50]} Nhf6 {[%emt 0:10:48]} 19. Qh3 {[%emt 0:13:02]} Ne5 {[%emt 0:08:32]} 20. Nc4 {[%emt 0:01:42]} Neg4 {[%emt 0:01:01]} 21. b4 {[%emt 0:12:32]} Bxb4 {[%emt 0:05:37]} 22. Nc6 {[%emt 0:00:38]} Bxc6 {[%emt 0:01:46]} 23. dxc6 {[%emt 0:00:05]} Qe7 {[%emt 0:00:04]} 24. Bf3 {[%emt 0:09:51]} h5 {[%emt 0:01:33]} 25. Qg2 {[%emt 0:12:01]} Bc5 {[%emt 0:01:29]} 26. Bd4 {[%emt 0:02:32]} Bxd4 {[%emt 0:03:51]} 27. Rxd4 {[%emt 0:00:03]} Qc5 {[%emt 0:00:11]} 28. Rf4 {[%emt 0:04:08]} g5 {[%emt 0:00:13]} 29. Rxf6 {[%emt 0:00:07]} Nxf6 {[%emt 0:00:29]} 30. Qf1 {[%emt 0:00:05]} Ne4 {[%emt 0:00:35]} 31. Bxh5 {[%emt 0:03:16]} Rxc6 {[%emt 0:01:40]} 32. Ne3 {[%emt 0:00:19]} Kf8 {[%emt 0:00:54]} 33. Re1 {[%emt 0:00:28]} Rf6 {[%emt 0:00:21]} 34. Ng4 {[%emt 0:00:11]} Rfe6 {[%emt 0:00:05]} 35. Rc1 {[%emt 0:01:22]} Qd4 {[%emt 0:00:21]} 36. Qb5 {[%emt 0:03:21]} Nc5 {[%emt 0:01:33]} 37. Qb1 {[%emt 0:01:05]} Qh8 {[%emt 0:02:01]} 0-1

[Event "Moscow Open RSSU Cup 2020"]
[Site "Moscow"]
[Date "2020.01.25"]
[Round "1.9"]
[White "Sindarov, Javokhir"]
[Black "Zhuravlev, Stepan"]
[Result "1-0"]
[ECO "C92"]
[WhiteElo "2537"]
[BlackElo "2227"]
[Annotator "ChessBase"]
[PlyCount "63"]
[EventDate "2020.01.25"]
[EventType "swiss"]
[EventCountry "RUS"]
[SourceTitle "playchess.com"]
[Source "ChessBase"]
[SourceQuality "1"]
[TimeControl "40/5400+30:1800+30"]

1. e4 {[%emt 0:00:00]} e5 {[%emt 0:00:00]} 2. Nf3 {[%emt 0:00:00]} Nc6 {[%emt 0:00:00]} 3. Bb5 {[%emt 0:00:40]} a6 {[%emt 0:00:20]} 4. Ba4 {[%emt 0:00:05]} Nf6 {[%emt 0:00:16]} 5. O-O {[%emt 0:00:06]} Be7 {[%emt 0:01:16]} 6. Re1 {[%emt 0:00:05]} b5 {[%emt 0:01:34]} 7. Bb3 {[%emt 0:00:04]} d6 {[%emt 0:00:53]} 8. c3 {[%emt 0:00:04]} O-O {[%emt 0:00:26]} 9. h3 {[%emt 0:00:04]} Bb7 {[%emt 0:00:19]} 10. d4 {[%emt 0:00:08]} Re8 {[%emt 0:02:16]} 11. Ng5 {[%emt 0:00:12]} Rf8 {[%emt 0:00:42]} 12. Nf3 {[%emt 0:00:23]} Re8 {[%emt 0:00:11]} 13. Nbd2 {[%emt 0:00:05]} Bf8 {[%emt 0:01:16]} 14. a4 {[%emt 0:00:04]} h6 {[%emt 0:02:19]} 15. Bc2 {[%emt 0:00:06]} exd4 {[%emt 0:02:31]} 16. cxd4 {[%emt 0:00:05]} Nb4 {[%emt 0:00:25]} 17. Bb1 {[%emt 0:00:04]} c5 {[%emt 0:00:29]} 18. d5 {[%emt 0:00:02]} Nd7 {[%emt 0:02:12]} 19. Ra3 {[%emt 0:00:04]} f5 {[%emt 0:05:12]} 20. g4 {[%emt 0:00:09]} f4 {[%emt 0:03:22]} 21. Nb3 {[%emt 0:01:58]} Ne5 {[%emt 1:14:31]} 22. Bd2 {[%emt 1:36:32]} Ned3 {[%emt 0:00:30]} 23. Bxd3 {[%emt 0:00:30]} Nxd3 {[%emt 0:00:30]} 24. Ba5 {[%emt 0:00:30]} Qd7 {[%emt 0:00:30]} 25. Qxd3 {[%emt 0:00:30]} c4 {[%emt 0:00:30]} 26. Qd2 {[%emt 0:00:30]} cxb3 {[%emt 0:00:30]} 27. axb5 {[%emt 0:00:30]} axb5 {[%emt 0:00:30]} 28. Nd4 {[%emt 0:00:30]} h5 {[%emt 0:00:30]} 29. f3 {[%emt 0:00:30]} Qe7 {[%emt 0:00:30]} 30. Rxb3 {[%emt 0:00:30]} Qh4 {[%emt 0:00:30]} 31. Nf5 {[%emt 0:00:30]} Qxh3 {[%emt 0:00:30]} 32. Re2 {[%emt 0:00:30]} 1-0

[Event "Moscow Open RSSU Cup 2020"]
[Site "Moscow"]
[Date "2020.01.25"]
[Round "1.10"]
[White "Arbuzov, Mikhail"]
[Black "Lintchevski, Daniil"]
[Result "0-1"]
[ECO "E44"]
[WhiteElo "2227"]
[BlackElo "2536"]
[Annotator "ChessBase"]
[PlyCount "90"]
[EventDate "2020.01.25"]
[EventType "swiss"]
[EventCountry "RUS"]
[SourceTitle "playchess.com"]
[Source "ChessBase"]
[SourceQuality "1"]
[TimeControl "40/5400+30:1800+30"]

1. d4 {[%emt 0:00:00]} Nf6 {[%emt 0:00:00]} 2. c4 {[%emt 0:00:00]} e6 {[%emt 0:00:02]} 3. Nc3 {[%emt 0:00:00]} Bb4 {[%emt 0:00:04]} 4. e3 {[%emt 0:00:03]} b6 {[%emt 0:00:04]} 5. Nge2 {[%emt 0:00:14]} Ne4 {[%emt 0:00:32]} 6. Qc2 {[%emt 0:11:25]} Bb7 {[%emt 0:00:07]} 7. a3 {[%emt 0:05:30]} Bxc3+ {[%emt 0:02:13]} 8. Nxc3 {[%emt 0:00:07]} Nxc3 {[%emt 0:00:06]} 9. Qxc3 {[%emt 0:00:34]} O-O {[%emt 0:00:07]} 10. b3 {[%emt 0:21:06]} d6 {[%emt 0:03:11]} 11. Bb2 {[%emt 0:00:10]} Qf6 {[%emt 0:02:58]} 12. Qc2 {[%emt 0:03:12]} Nd7 {[%emt 0:00:56]} 13. Bd3 {[%emt 0:07:14]} Qh6 {[%emt 0:02:06]} 14. O-O {[%emt 0:08:32]} f5 {[%emt 0:01:28]} 15. Rae1 {[%emt 0:10:50]} Rae8 {[%emt 0:03:21]} 16. f3 {[%emt 0:01:05]} a5 {[%emt 0:04:11]} 17. e4 {[%emt 0:08:57]} fxe4 {[%emt 0:00:36]} 18. Bxe4 {[%emt 0:01:17]} Bxe4 {[%emt 0:00:59]} 19. Rxe4 {[%emt 0:02:19]} Qg6 {[%emt 0:01:07]} 20. Qe2 {[%emt 0:04:01]} Re7 {[%emt 0:03:27]} 21. f4 {[%emt 0:04:51]} h6 {[%emt 0:07:31]} 22. b4 {[%emt 0:02:10]} axb4 {[%emt 0:06:12]} 23. axb4 {[%emt 0:00:04]} Kh8 {[%emt 0:00:07]} 24. d5 {[%emt 0:02:40]} e5 {[%emt 0:00:55]} 25. fxe5 {[%emt 0:03:15]} Rxf1+ {[%emt 0:00:15]} 26. Kxf1 {[%emt 0:00:04]} dxe5 {[%emt 0:03:53]} 27. g3 {[%emt 0:01:30]} b5 {[%emt 0:03:46]} 28. Kg2 {[%emt 0:01:53]} bxc4 {[%emt 0:00:04]} 29. Qxc4 {[%emt 0:00:46]} Nb6 {[%emt 0:01:58]} 30. Qd3 {[%emt 0:00:38]} Qd6 {[%emt 0:01:33]} 31. b5 {[%emt 0:00:29]} Nxd5 {[%emt 0:01:54]} 32. Qe2 {[%emt 0:00:08]} Qg6 {[%emt 0:04:31]} 33. Kh1 {[%emt 0:00:39]} c6 {[%emt 0:06:01]} 34. Rxe5 {[%emt 0:00:26]} Rxe5 {[%emt 0:02:37]} 35. Qxe5 {[%emt 0:00:04]} cxb5 {[%emt 0:00:02]} 36. Kg2 {[%emt 0:01:14]} Nb4 {[%emt 0:06:44]} 37. Bd4 {[%emt 0:00:32]} Nc6 {[%emt 0:01:39]} 38. Qd5 {[%emt 0:00:28]} Nxd4 {[%emt 0:04:14]} 39. Qxd4 {[%emt 0:00:04]} Qc2+ {[%emt 0:00:04]} 40. Kf3 {[%emt 0:00:55]} Qb3+ {[%emt 0:00:51]} 41. Kf4 {[%emt 0:30:32]} Qa4 {[%emt 0:30:53]} 42. Ke5 {[%emt 0:00:17]} Qxd4+ {[%emt 0:00:11]} 43. Kxd4 {[%emt 0:00:03]} Kh7 {[%emt 0:00:05]} 44. Kc5 {[%emt 0:00:12]} Kg6 {[%emt 0:00:03]} 45. Kxb5 {[%emt 0:00:14]} Kf5 {[%emt 0:00:04]} 0-1

[Event "Moscow Open RSSU Cup 2020"]
[Site "Moscow"]
[Date "2020.01.25"]
[Round "1.11"]
[White "Khegay, Dmitriy"]
[Black "Burmakin, Evgeniy"]
[Result "1-0"]
[ECO "A09"]
[WhiteElo "2533"]
[BlackElo "2223"]
[Annotator "ChessBase"]
[PlyCount "83"]
[EventDate "2020.01.25"]
[EventType "swiss"]
[EventCountry "RUS"]
[SourceTitle "playchess.com"]
[Source "ChessBase"]
[SourceQuality "1"]
[TimeControl "40/5400+30:1800+30"]

1. Nf3 {[%emt 0:00:00]} d5 {[%emt 0:00:00]} 2. c4 {[%emt 0:00:04]} d4 {[%emt 0:00:00]} 3. b4 {[%emt 0:01:48]} f6 {[%emt 0:00:51]} 4. d3 {[%emt 0:00:58]} e5 {[%emt 0:00:43]} 5. a3 {[%emt 0:00:03]} a5 {[%emt 0:01:02]} 6. b5 {[%emt 0:00:07]} Bd6 {[%emt 0:05:11]} 7. g3 {[%emt 0:00:09]} Ne7 {[%emt 0:00:12]} 8. Bg2 {[%emt 0:00:14]} Nd7 {[%emt 0:00:46]} 9. O-O {[%emt 0:00:11]} O-O {[%emt 0:00:38]} 10. e3 {[%emt 0:00:15]} c5 {[%emt 0:16:58]} 11. exd4 {[%emt 0:00:00]} cxd4 {[%emt 0:02:17]} 12. Nbd2 {[%emt 0:01:58]} Nc5 {[%emt 0:01:29]} 13. Nb3 {[%emt 0:00:13]} Ne6 {[%emt 0:07:34]} 14. a4 {[%emt 0:00:10]} Rb8 {[%emt 0:02:09]} 15. Nfd2 {[%emt 0:03:29]} b6 {[%emt 0:06:32]} 16. Ne4 {[%emt 0:05:52]} Bb4 {[%emt 0:00:37]} 17. Bd2 {[%emt 0:02:12]} Bxd2 {[%emt 0:01:30]} 18. Qxd2 {[%emt 0:00:37]} Bb7 {[%emt 0:08:48]} 19. Rfe1 {[%emt 0:01:38]} h6 {[%emt 0:06:29]} 20. Qe2 {[%emt 0:08:18]} f5 {[%emt 0:02:48]} 21. Ned2 {[%emt 0:00:06]} Bxg2 {[%emt 0:00:07]} 22. Qxe5 {[%emt 0:03:12]} Ba8 {[%emt 0:17:23]} 23. Qxe6+ {[%emt 0:00:06]} Rf7 {[%emt 0:00:03]} 24. Re5 {[%emt 0:08:13]} Bb7 {[%emt 0:03:59]} 25. Re2 {[%emt 0:02:48]} Kf8 {[%emt 0:06:15]} 26. Rae1 {[%emt 0:00:31]} Rc8 {[%emt 0:01:20]} 27. Qe5 {[%emt 0:01:23]} Ng6 {[%emt 0:00:43]} 28. Qxd4 {[%emt 0:00:42]} Rd7 {[%emt 0:00:18]} 29. Re8+ {[%emt 0:02:45]} Qxe8 {[%emt 0:00:07]} 30. Rxe8+ {[%emt 0:00:05]} Kxe8 {[%emt 0:00:20]} 31. Qxb6 {[%emt 0:00:05]} Ne5 {[%emt 0:00:49]} 32. Nc5 {[%emt 0:01:45]} Rxc5 {[%emt 0:00:52]} 33. Qxc5 {[%emt 0:00:07]} Re7 {[%emt 0:01:24]} 34. d4 {[%emt 0:04:18]} Nd3 {[%emt 0:00:54]} 35. Qxf5 {[%emt 0:00:17]} Re1+ {[%emt 0:00:20]} 36. Nf1 {[%emt 0:00:06]} Be4 {[%emt 0:00:21]} 37. Qc8+ {[%emt 0:00:20]} Kf7 {[%emt 0:00:23]} 38. f3 {[%emt 0:00:13]} Bg6 {[%emt 0:00:56]} 39. b6 {[%emt 0:00:11]} Nc1 {[%emt 0:02:26]} 40. Qc7+ {[%emt 0:01:34]} Kf6 {[%emt 0:00:18]} 41. Qe5+ {[%emt 0:30:36]} Rxe5 {[%emt 0:32:08]} 42. dxe5+ {[%emt 0:00:05]} 1-0